bitfinex-derivatives/quotes_BNBF0:USTF0_20250603
["timestamp","ask_amount","ask_price","bid_price","bid_amount"]
[1748962104324,1.157,668.23,666.85,1.06202271]
[1748962104620,1.157,668.23,666.83,1.21740225]
[1748962104821,1.157,668.23,666.84,1.0619744]
[1748962105027,1.157,668.23,666.85,1.0619744]
[1748962105225,1.157,668.23,666.83,0.74356623]
[1748962105425,1.157,668.23,666.84,1.06195754]
[1748962105625,1.157,668.23,666.85,1.06195754]
[1748962105822,1.157,668.23,666.83,1.21740225]
[1748962106026,1.157,668.23,666.84,1.06185309]
[1748962106220,1.157,668.23,666.85,1.06185309]
[1748962106426,1.157,668.23,666.84,0.47383602]
[1748962106622,1.157,668.23,666.85,1.06168042]
[1748962106822,1.157,668.23,666.84,0.47383602]
[1748962107325,0.29930262,668.22,666.95,0.47383602]
[1748962108124,0.29930262,668.22,666.83,0.74356623]
[1748962108125,0.29930262,668.22,666.96,0.47383602]
[1748962108325,0.29930262,668.22,666.97,0.47383602]
[1748962109328,0.29930262,668.22,667.09,0.47383602]
[1748962109526,3.73535957,668.16,667.03,0.47383602]
[1748962110030,0.29930262,668.22,667.03,0.47383602]
[1748962110232,0.29930262,668.22,667.08,0.47383602]
[1748962110427,1.157,668.23,667.08,0.47383602]
[1748962110635,3.73535957,668.19,667.04,0.47383602]
[1748962110935,1.157,668.23,666.85,0.47383602]
[1748962111233,1.157,668.23,666.92,0.47383602]
[1748962111432,1.157,668.23,666.93,1.06012005]
[1748962111633,1.157,668.23,666.94,1.06012005]
[1748962111833,1.157,668.23,666.95,1.06012005]
[1748962112033,1.157,668.23,666.96,1.06012005]
[1748962112236,1.157,668.23,666.97,1.06012005]
[1748962112530,0.26081678,668.78,666.98,1.06012005]
[1748962112734,0.26081678,668.78,666.99,1.06012005]
[1748962113034,0.26081678,668.78,667.0,1.06012005]
[1748962113230,0.26081678,668.78,667.01,1.06012005]
[1748962113435,0.26081678,668.78,667.02,1.80264876]
[1748962113737,0.26081678,668.78,667.03,1.80264854]
[1748962113932,0.26081678,668.78,667.04,1.80264615]
[1748962114133,0.26081678,668.78,667.05,1.06012005]
[1748962114332,0.26081678,668.78,667.06,1.80264305]
[1748962114636,1.203,668.77,667.07,1.06012005]
[1748962114831,1.203,668.77,667.18,0.47383602]
[1748962115030,1.203,668.77,667.19,1.80219781]
[1748962115335,1.203,668.77,667.21,0.47383602]
[1748962115535,1.203,668.77,667.22,1.53107126]
[1748962115733,1.203,668.77,667.23,1.05723524]
[1748962115934,1.203,668.77,667.24,1.05723524]
[1748962116130,1.203,668.77,667.25,1.05723524]
[1748962116435,1.203,668.77,667.3,0.47383602]
[1748962116735,1.203,668.77,667.29,0.47383602]
[1748962117034,1.203,668.77,667.3,1.05666417]
[1748962117234,1.203,668.77,667.35,0.47383602]
[1748962117635,1.203,668.77,667.22,0.74205638]
[1748962117636,1.203,668.77,667.4,0.47383602]
[1748962117830,1.203,668.77,667.5,0.47383602]
[1748962118035,1.203,668.77,667.51,0.47383602]
[1748962118430,1.203,668.77,667.48,0.47383602]
[1748962118831,1.203,668.77,667.51,0.47383602]
[1748962119135,1.203,668.77,667.29,0.47383602]
[1748962119333,1.203,668.77,667.3,1.05560785]
[1748962119534,1.203,668.77,667.31,1.05560785]
[1748962119734,1.203,668.77,667.27,0.47383602]
[1748962119935,1.203,668.77,667.34,0.47383602]
[1748962120334,1.203,668.77,667.4,0.47383602]
[1748962120938,1.203,668.77,667.63,0.47383602]
[1748962121134,1.203,668.77,667.81,0.47383602]
[1748962121635,1.203,668.77,667.79,0.47383602]
[1748962121839,1.203,668.77,667.81,0.47383602]
[1748962122034,1.203,668.77,667.68,0.47383602]
[1748962122237,1.203,668.77,667.62,0.47383602]
[1748962122538,1.203,668.77,667.51,0.47383602]
[1748962123239,1.203,668.77,667.22,0.74205638]
[1748962123240,1.203,668.77,667.52,0.47383602]
[1748962123437,1.203,668.77,667.28,0.47383602]
[1748962123642,1.203,668.77,667.38,0.47383602]
[1748962123941,1.203,668.77,667.22,0.74205638]
[1748962123942,1.203,668.77,667.43,0.47383602]
[1748962124137,1.203,668.77,667.22,0.74205638]
[1748962124138,1.203,668.77,667.44,0.47383602]
[1748962124346,1.203,668.77,667.43,0.47383602]
[1748962124845,1.203,668.77,667.42,0.47383602]
[1748962125244,1.203,668.77,667.44,0.47383602]
[1748962125445,1.203,668.77,667.42,0.47383602]
[1748962125743,1.203,668.77,667.41,0.47383602]
[1748962126139,1.203,668.77,667.48,0.47383602]
[1748962126341,1.203,668.77,667.57,0.47383602]
[1748962126539,1.203,668.77,667.6,0.47383602]
[1748962126739,1.203,668.77,667.62,0.47383602]
[1748962126944,1.203,668.77,667.61,0.47383602]
[1748962127140,1.203,668.77,667.64,0.47383602]
[1748962127344,1.203,668.77,667.83,0.47383602]
[1748962127647,1.203,668.77,667.81,0.47383602]
[1748962127839,1.203,668.77,667.86,0.47383602]
[1748962128042,1.203,668.77,667.85,0.47383602]
[1748962128245,1.203,668.77,667.9,0.47383602]
[1748962128443,1.203,668.77,667.88,0.47383602]
[1748962128941,1.203,668.77,667.54,0.47383602]
[1748962129348,1.203,668.77,667.22,1.2158924]
[1748962129542,1.203,668.77,667.26,0.47383602]
[1748962129747,1.203,668.77,667.27,1.0538114]
[1748962129944,1.203,668.77,667.28,1.79545425]
[1748962130146,1.203,668.77,667.29,1.79544539]
[1748962130345,1.203,668.77,667.3,1.0538114]
[1748962130548,1.203,668.77,667.28,0.47383602]
[1748962130549,1.203,668.77,667.31,1.0538114]
[1748962130746,1.203,668.77,667.32,1.0538114]
[1748962130942,1.203,668.77,667.36,0.47383602]
[1748962131145,1.203,668.77,667.37,1.0538114]
[1748962131347,1.203,668.77,667.38,0.47383602]
[1748962131743,1.203,668.77,667.36,0.47383602]
[1748962131944,1.203,668.77,667.37,1.05346407]
[1748962132142,1.203,668.77,667.38,1.05346407]
[1748962132342,1.203,668.77,667.26,0.47383602]
[1748962132643,1.203,668.77,667.27,1.05322364]
[1748962132847,1.203,668.77,667.28,1.05322364]
[1748962133043,1.203,668.77,667.33,0.47383602]
[1748962133247,1.203,668.77,667.35,0.47383602]
[1748962133446,1.203,668.77,667.36,1.05322364]
[1748962133647,1.203,668.77,667.35,0.47383602]
[1748962133648,1.203,668.77,667.37,1.05322364]
[1748962133848,1.203,668.77,667.38,1.05322364]
[1748962134151,1.203,668.77,667.28,0.47383602]
[1748962134347,1.203,668.77,667.47,0.47383602]
[1748962134541,1.203,668.77,667.41,0.47383602]
[1748962134747,1.203,668.77,667.61,0.47383602]
[1748962134947,1.203,668.77,667.58,0.47383602]
[1748962135343,1.203,668.77,667.8,0.47383602]
[1748962135548,0.29906094,668.76,667.29,0.29971976]
[1748962135750,0.29906094,668.76,667.3,1.05303967]
[1748962136049,0.29906094,668.76,667.45,0.47383602]
[1748962136349,0.29906094,668.76,667.29,0.29971976]
[1748962136350,0.29906094,668.76,667.53,0.47383602]
[1748962136550,0.29906094,668.76,667.6,0.47383602]
[1748962136750,0.29906094,668.76,667.77,0.47383602]
[1748962137051,0.29906094,668.76,668.07,0.47383602]
[1748962137245,0.29906094,668.76,668.1,0.47383602]
[1748962137451,0.29906094,668.76,667.9,0.47383602]
[1748962137651,0.29906094,668.76,667.91,0.47383602]
[1748962137851,0.29906094,668.76,667.89,0.47383602]
[1748962138053,0.29906094,668.76,667.91,0.47383602]
[1748962138249,0.29906094,668.76,667.95,0.47383602]
[1748962138854,0.29906094,668.76,667.93,0.47383602]
[1748962139054,0.29906094,668.76,667.94,0.47383602]
[1748962139349,0.29906094,668.76,668.08,0.47383602]
[1748962139951,0.29906094,668.76,668.06,0.47383602]
[1748962140250,0.29906094,668.76,668.08,0.47383602]
[1748962140847,0.29906094,668.76,667.67,0.47383602]
[1748962140848,0.29906094,668.76,668.07,0.47383602]
[1748962141053,0.29906094,668.76,668.19,0.47383602]
[1748962141253,1.208,668.75,668.12,0.08210683]
[1748962141453,1.208,668.75,667.57,0.47383602]
[1748962141653,1.208,668.75,667.55,0.47383602]
[1748962141853,1.208,668.75,667.53,0.47383602]
[1748962142054,1.208,668.75,667.54,0.47383602]
[1748962142257,1.208,668.75,667.29,0.29971976]
[1748962142452,1.208,668.75,667.3,1.79292729]
[1748962142654,1.208,668.75,667.31,1.35142971]
[1748962142955,1.208,668.75,667.32,2.09264566]
[1748962143150,1.208,668.75,667.33,2.09252362]
[1748962143352,1.208,668.75,667.34,2.09250441]
[1748962143550,1.208,668.75,667.35,1.05171894]
[1748962143750,1.208,668.75,667.36,2.09247467]
[1748962143952,1.208,668.75,667.37,1.35140277]
[1748962144151,1.208,668.75,667.38,1.35139828]
[1748962144356,1.208,668.75,667.39,1.35139379]
[1748962144657,1.208,668.75,667.4,1.3513893]
[1748962144852,1.208,668.75,667.41,2.09192418]
[1748962145157,1.208,668.75,667.42,2.09192046]
[1748962145357,1.208,668.75,667.43,1.05171894]
[1748962145557,1.208,668.75,667.44,0.74053128]
[1748962145757,1.208,668.75,667.42,0.29966138]
[1748962147353,1.208,668.75,667.56,0.47383602]
[1748962147559,1.50706542,668.75,667.6,0.47383602]
[1748962147855,1.50706542,668.75,667.61,0.47383602]
[1748962148259,1.50706542,668.75,667.6,0.47383602]
[1748962148760,0.29906989,668.74,667.59,0.47383602]
[1748962149262,0.29906989,668.74,667.6,0.47383602]
[1748962149859,0.29906989,668.74,667.54,0.47383602]
[1748962150261,0.29906989,668.74,667.53,0.47383602]
[1748962150755,0.29906989,668.74,667.52,0.47383602]
[1748962150959,0.29906989,668.74,667.42,0.29966138]
[1748962152560,0.29906989,668.74,667.91,0.47383602]
[1748962152856,3.73535957,668.69,667.89,0.0867974]
[1748962153061,3.73535957,668.69,667.73,0.47383602]
[1748962153259,3.73535957,668.69,667.74,0.48283421]
[1748962153461,3.73535957,668.69,667.75,0.48283421]
[1748962153762,0.29906989,668.74,667.52,0.47383602]
[1748962154063,0.29906989,668.74,667.53,0.48283526]
[1748962154262,0.29906989,668.74,667.54,0.48283526]
[1748962154562,0.29906989,668.74,667.55,0.48283526]
[1748962154764,0.29906989,668.74,667.56,0.48283526]
[1748962155061,0.29906989,668.74,667.57,0.48283526]
[1748962155256,0.29906989,668.74,667.58,0.48283526]
[1748962155460,0.29906989,668.74,667.59,0.48283526]
[1748962155762,0.29906989,668.74,667.46,0.47383602]
[1748962155962,0.29906989,668.74,667.47,0.48291406]
[1748962156258,0.29906989,668.74,667.48,0.48291406]
[1748962156463,0.29906989,668.74,667.42,0.29966138]
[1748962156657,0.29906989,668.74,667.44,0.47383602]
[1748962156874,0.29906989,668.74,667.42,0.29966138]
[1748962156875,3.73535957,668.6,667.47,0.47383602]
[1748962157060,3.73535957,668.6,667.48,0.48298401]
[1748962157461,0.29906989,668.74,667.49,0.48298401]
[1748962157462,3.73535957,668.54,667.49,0.48298401]
[1748962157660,3.73535957,668.54,667.5,0.48298401]
[1748962157865,3.73535957,668.52,667.51,0.48298401]
[1748962158065,3.73535957,668.52,667.42,0.29966138]
[1748962158265,3.73535957,668.51,667.43,0.482905]
[1748962158465,3.73535957,668.51,667.44,0.482905]
[1748962158661,3.73535957,668.51,667.45,0.482905]
[1748962158959,3.73535957,668.51,667.46,0.482905]
[1748962159166,3.73535957,668.6,667.42,0.29966138]
[1748962159964,4.03449208,668.6,667.42,0.29966138]
[1748962160166,0.29913251,668.6,667.42,0.29966138]
[1748962161463,5.52863591,668.6,667.42,0.29966138]
[1748962161668,3.73535957,668.38,667.42,0.29966138]
[1748962162068,3.73535957,668.38,667.22,0.74205638]
[1748962162469,3.73535957,668.4,667.22,0.74205638]
[1748962164270,3.73535957,668.38,667.22,0.74205638]
[1748962164670,3.73535957,668.39,667.22,0.74205638]
[1748962165067,0.29913251,668.6,667.22,0.74205638]
[1748962165068,3.73535957,668.4,667.22,0.74205638]
[1748962165869,0.29913251,668.6,667.22,0.74205638]
[1748962165870,3.73535957,668.39,667.22,0.74205638]
[1748962166167,3.73535957,668.37,667.22,0.74205638]
[1748962167167,0.29913251,668.6,667.22,0.74205638]
[1748962172877,4.03449208,668.6,667.22,0.74205638]
[1748962173381,3.73535957,668.21,667.22,0.74205638]
[1748962174782,3.73535957,668.22,667.22,0.74205638]
[1748962175282,5.2295034,668.43,667.22,0.74205638]
[1748962175479,3.73535957,668.52,667.22,0.74205638]
[1748962175783,0.29917278,668.51,667.22,0.74205638]
[1748962177485,3.73535957,668.48,667.22,0.74205638]
[1748962177685,0.29919068,668.47,667.22,0.74205638]
[1748962180588,3.72069198,668.36,667.22,0.74205638]
[1748962180783,0.2992444,668.35,667.22,0.74205638]
[1748962185084,0.995,668.34,667.22,0.74205638]
[1748962185288,0.29925336,668.33,667.22,0.74205638]
[1748962190992,1.062,668.32,667.22,0.74205638]
[1748962191286,0.29926231,668.31,667.22,0.74205638]
[1748962203401,3.72069198,668.29,667.22,0.74205638]
[1748962203696,0.29927575,668.28,667.22,0.74205638]
[1748962203898,3.72069198,668.17,667.22,0.74205638]
[1748962204102,0.2993295,668.16,667.22,0.74205638]
[1748962204902,3.72069198,668.14,667.22,0.74205638]
[1748962205099,4.02003044,668.14,667.22,0.74205638]
[1748962205304,0.29933846,668.14,667.22,0.74205638]
[1748962206199,3.72069198,668.13,667.22,0.74205638]
[1748962206702,0.29933846,668.14,667.22,0.74205638]
[1748962212804,0.81,668.13,667.22,0.74205638]
[1748962229023,4.53069198,668.13,667.22,0.74205638]
[1748962229526,0.81,668.13,667.22,0.74205638]
[1748962245032,0.81,668.13,666.85,1.10407422]
[1748962245235,0.81,668.13,666.87,0.29990852]
[1748962245532,0.81,668.13,666.88,1.04993123]
[1748962245739,0.81,668.13,666.9,0.29989503]
[1748962245934,0.81,668.13,666.91,1.78354946]
[1748962246135,0.81,668.13,666.92,1.34981727]
[1748962246330,0.81,668.13,666.93,1.34981277]
[1748962246532,0.81,668.13,666.94,1.34980828]
[1748962246733,0.81,668.13,666.95,1.34980378]
[1748962246932,0.81,668.13,666.94,0.7333254]
[1748962246933,0.81,668.13,666.96,2.0830771]
[1748962247135,0.81,668.13,666.97,1.34979479]
[1748962247338,0.81,668.13,666.98,2.08299546]
[1748962247535,0.81,668.13,666.99,2.08297969]
[1748962247739,0.81,668.13,667.0,1.3497813]
[1748962247940,0.81,668.13,667.01,2.08300331]
[1748962248234,0.81,668.13,667.02,1.34977231]
[1748962248441,0.81,668.13,667.03,1.34976781]
[1748962248639,0.81,668.13,667.04,1.34976332]
[1748962248841,0.81,668.13,667.04,0.29983209]
[1748962249044,0.81,668.13,667.05,1.04837067]
[1748962249240,0.81,668.13,667.06,1.78147751]
[1748962249439,0.81,668.13,667.07,1.34818927]
[1748962249637,0.81,668.13,667.08,1.34818478]
[1748962249843,0.81,668.13,667.09,2.081278]
[1748962250043,0.81,668.13,667.1,2.08143094]
[1748962250239,0.81,668.13,666.94,0.7333254]
[1748962250240,0.81,668.13,667.11,1.3481713]
[1748962250442,0.81,668.13,667.12,1.3481668]
[1748962250641,0.81,668.13,667.13,1.34816231]
[1748962250845,0.81,668.13,667.14,1.34815782]
[1748962251044,0.81,668.13,667.15,1.34815332]
[1748962251242,0.81,668.13,667.16,1.34814883]
[1748962251446,0.81,668.13,667.17,1.34814434]
[1748962251646,0.81,668.13,667.18,1.34813984]
[1748962251848,0.81,668.13,667.19,1.04790814]
[1748962252045,0.81,668.13,667.2,1.04790814]
[1748962252245,0.81,668.13,667.21,1.04790814]
[1748962252449,0.81,668.13,667.22,1.04790814]
[1748962252652,0.81,668.13,667.18,0.29976917]
[1748962252846,0.81,668.13,667.19,1.0475625]
[1748962253153,0.81,668.13,667.2,1.0475625]
[1748962253352,0.81,668.13,667.21,1.0475625]
[1748962253546,0.81,668.13,667.22,1.0475625]
[1748962253755,0.81,668.13,667.23,1.0475625]
[1748962253946,0.81,668.13,667.18,0.29976917]
[1748962253947,0.81,668.13,667.24,1.0475625]
[1748962254147,0.81,668.13,667.25,1.0475625]
[1748962254347,0.81,668.13,667.26,1.0475625]
[1748962254548,0.81,668.13,667.18,0.29976917]
[1748962254549,0.81,668.13,667.27,1.0475625]
[1748962254749,0.26078355,668.86,667.28,1.0475625]
[1748962254953,0.29902517,668.84,667.29,1.04670363]
[1748962255154,0.29902517,668.84,667.18,0.29976917]
[1748962255350,0.29902517,668.84,667.19,1.04658225]
[1748962255554,0.29902517,668.84,667.2,1.34634244]
[1748962255751,0.29902517,668.84,667.21,1.34633794]
[1748962255955,0.29902517,668.84,667.22,1.34633345]
[1748962256150,0.29902517,668.84,667.23,1.04658225]
[1748962256355,0.29902517,668.84,667.24,1.04658225]
[1748962256556,0.29902517,668.84,667.25,1.04658225]
[1748962256756,0.29902517,668.84,667.26,1.04658225]
[1748962256952,0.956,668.83,667.27,1.04658225]
[1748962257156,0.29903411,668.82,667.28,1.04658225]
[1748962257355,0.29903411,668.82,667.29,1.04658225]
[1748962257556,0.29903411,668.82,667.22,0.2997512]
[1748962257753,0.29903411,668.82,667.23,1.0464703]
[1748962257957,0.29903411,668.82,667.24,1.0464703]
[1748962258154,0.29903411,668.82,667.25,1.34620802]
[1748962258357,0.29903411,668.82,667.26,1.0464703]
[1748962258659,0.29903411,668.82,667.27,1.0464703]
[1748962258860,0.29903411,668.82,667.28,1.0464703]
[1748962259054,0.29903411,668.82,667.29,1.0464703]
[1748962259359,0.29903411,668.82,667.3,1.0464703]
[1748962259554,0.29903411,668.82,667.31,1.0464703]
[1748962259760,0.29903411,668.82,667.32,1.0464703]
[1748962259958,0.29903411,668.82,667.25,0.29973772]
[1748962260155,0.29903411,668.82,667.26,1.04598449]
[1748962260360,0.29903411,668.82,667.27,1.04528569]
[1748962260553,0.29903411,668.82,667.28,1.04528569]
[1748962260757,0.29903411,668.82,667.29,1.04528569]
[1748962260955,0.29903411,668.82,667.25,0.29973772]
[1748962261258,0.29903411,668.82,667.26,1.04539047]
[1748962261462,0.29903411,668.82,667.27,1.04539047]
[1748962261660,0.29903411,668.82,667.25,0.29973772]
[1748962261963,0.29903411,668.82,667.26,1.04551037]
[1748962262154,0.29903411,668.82,667.25,0.29973772]
[1748962262355,0.29903411,668.82,667.26,1.04550963]
[1748962262557,0.29903411,668.82,667.25,0.29973772]
[1748962262759,0.29903411,668.82,667.26,1.04544942]
[1748962262955,0.29903411,668.82,667.25,0.29973772]
[1748962263158,0.29903411,668.82,667.26,1.04544936]
[1748962263460,0.29903411,668.82,667.25,0.29973772]
[1748962263661,0.29903411,668.82,667.26,1.04439976]
[1748962263860,0.29903411,668.82,667.25,0.29973772]
[1748962264261,0.29903411,668.82,667.26,0.46860599]
[1748962265261,0.29903411,668.82,667.25,0.76834371]
[1748962265462,0.29903411,668.82,667.51,0.46860599]
[1748962265761,0.29903411,668.82,667.5,0.46860599]
[1748962266163,0.29903411,668.82,667.54,0.46860599]
[1748962266458,0.29903411,668.82,667.55,0.46860599]
[1748962266857,0.29903411,668.82,667.89,0.46860599]
[1748962267058,0.29903411,668.82,667.91,0.46860599]
[1748962267262,0.29903411,668.82,667.94,0.46860599]
[1748962267663,0.29903411,668.82,668.01,0.46860599]
[1748962267860,0.29903411,668.82,668.0,0.09022412]
[1748962268064,0.29903411,668.82,667.45,0.47217621]
[1748962268465,0.29903411,668.82,667.25,0.29973772]
[1748962268466,0.29903411,668.82,667.46,0.47217621]
[1748962269162,0.29903411,668.82,667.33,0.47217621]
[1748962269565,0.29903411,668.82,667.31,0.47217621]
[1748962269767,0.29903411,668.82,667.32,0.47217621]
[1748962270170,0.29903411,668.82,667.31,0.47217621]
[1748962270967,0.29903411,668.82,667.32,0.47217621]
[1748962271166,0.29903411,668.82,667.25,0.29973772]
[1748962271167,0.29903411,668.82,667.31,0.47217621]
[1748962272268,0.29903411,668.82,667.26,0.47217621]
[1748962272467,0.29903411,668.82,667.27,1.34412182]
[1748962272768,0.29903411,668.82,667.28,1.04439308]
[1748962272971,0.29903411,668.82,667.29,1.04439308]
[1748962273172,0.29903411,668.82,667.3,1.04427588]
[1748962273469,0.29903411,668.82,667.31,1.04427588]
[1748962273770,0.29903411,668.82,667.27,0.29972874]
[1748962273972,0.29903411,668.82,667.28,1.04434646]
[1748962274271,0.29903411,668.82,667.29,1.04451813]
[1748962274475,0.29903411,668.82,667.3,1.04451813]
[1748962274674,0.29903411,668.82,667.31,1.04451813]
[1748962274875,0.29903411,668.82,667.27,0.29972874]
[1748962275074,0.29903411,668.82,667.28,1.0445037]
[1748962275276,0.29903411,668.82,667.29,1.0445037]
[1748962275476,0.29903411,668.82,667.3,1.0445037]
[1748962275670,0.29903411,668.82,667.31,1.04469788]
[1748962275871,0.29903411,668.82,667.32,1.04469788]
[1748962276072,0.29903411,668.82,667.33,1.04454587]
[1748962276276,0.29903411,668.82,667.27,0.29972874]
[1748962276476,0.29903411,668.82,667.28,1.04474617]
[1748962276674,0.29903411,668.82,667.29,1.04469448]
[1748962276872,0.29903411,668.82,667.3,1.04469448]
[1748962277076,0.29903411,668.82,667.31,1.04469448]
[1748962277383,0.29903411,668.82,667.27,0.29972874]
[1748962277384,0.29903411,668.82,667.32,1.04469448]
[1748962277672,0.29903411,668.82,667.33,1.04469448]
[1748962277877,0.29903411,668.82,667.27,0.29972874]
[1748962278080,0.29903411,668.82,667.28,1.77968305]
[1748962278279,0.29903411,668.82,667.29,1.04485827]
[1748962278481,0.29903411,668.82,667.3,1.04485827]
[1748962278678,0.29903411,668.82,667.31,1.04485827]
[1748962278878,0.29903411,668.82,667.32,1.04485827]
[1748962279079,0.29903411,668.82,667.33,1.04485827]
[1748962279280,0.29903411,668.82,667.27,0.29972874]
[1748962279481,0.29903411,668.82,667.28,1.0453804]
[1748962279679,0.29903411,668.82,667.29,1.0453804]
[1748962279982,0.29903411,668.82,667.3,1.0453804]
[1748962280179,0.29903411,668.82,667.31,1.0453804]
[1748962280378,0.29903411,668.82,667.32,1.0453804]
[1748962280581,0.29903411,668.82,667.27,0.29972874]
[1748962280776,0.29903411,668.82,667.28,1.77984911]
[1748962280984,0.29903411,668.82,667.29,1.04529473]
[1748962281183,0.29903411,668.82,667.3,1.04529473]
[1748962281379,0.29903411,668.82,667.31,1.04529473]
[1748962281585,0.29903411,668.82,667.32,1.04503814]
[1748962281780,0.29903411,668.82,667.27,0.29972874]
[1748962281981,0.29903411,668.82,667.28,1.04504474]
[1748962282181,0.29903411,668.82,667.29,1.04504474]
[1748962282381,0.29903411,668.82,667.3,1.04504474]
[1748962282584,0.29903411,668.82,667.31,1.04504474]
[1748962282785,0.29903411,668.82,667.28,0.29972425]
[1748962282981,0.29903411,668.82,667.29,1.04501994]
[1748962283187,0.29903411,668.82,667.3,1.04501994]
[1748962283387,0.29903411,668.82,667.31,1.04501994]
[1748962283587,0.29903411,668.82,667.28,0.29972425]
[1748962283783,0.29903411,668.82,667.29,1.0451617]
[1748962283988,0.29903411,668.82,667.3,1.34487697]
[1748962284190,0.29903411,668.82,667.31,1.0451617]
[1748962284389,0.29903411,668.82,667.3,0.29971527]
[1748962284582,0.29903411,668.82,667.31,1.04515133]
[1748962284787,0.29903411,668.82,667.3,0.29971527]
[1748962285085,0.29903411,668.82,667.31,1.04517741]
[1748962285289,0.29903411,668.82,667.3,0.29971527]
[1748962287085,4.01972609,668.82,667.3,0.29971527]
[1748962287487,3.72069198,668.7,667.3,0.29971527]
[1748962288389,3.72069198,668.67,667.3,0.29971527]
[1748962289291,3.72069198,668.73,667.3,0.29971527]
[1748962289492,0.29907883,668.72,667.3,0.29971527]
[1748962290893,4.01977081,668.72,667.3,0.29971527]
[1748962291295,3.72069198,668.66,667.3,0.29971527]
[1748962291589,0.29911014,668.65,667.3,0.29971527]
[1748962292189,3.72069198,668.62,667.3,0.29971527]
[1748962292391,0.29912804,668.61,667.3,0.29971527]
[1748962292590,4.01982002,668.61,667.3,0.29971527]
[1748962294097,0.29912804,668.61,667.3,0.29971527]
[1748962294895,4.01982002,668.61,667.3,0.29971527]
[1748962296297,3.72069198,668.53,667.3,0.29971527]
[1748962297697,3.72069198,668.52,667.3,0.29971527]
[1748962298700,4.01982002,668.61,667.3,0.29971527]
[1748962299101,0.29912804,668.61,667.3,0.29971527]
[1748962301298,0.29912804,668.61,667.31,1.04891203]
[1748962301501,0.781,668.6,667.32,1.04891203]
[1748962301702,0.781,668.6,667.33,1.04891203]
[1748962301902,0.781,668.6,667.34,1.04891203]
[1748962302102,0.781,668.6,667.35,1.04891203]
[1748962302403,0.781,668.6,667.36,1.04891203]
[1748962302599,0.781,668.6,667.37,1.04891203]
[1748962302801,0.781,668.6,667.38,1.04891203]
[1748962303001,0.781,668.6,667.39,1.04891203]
[1748962303197,0.781,668.6,667.3,0.29971527]
[1748962303397,0.781,668.6,667.31,1.04874529]
[1748962303598,0.781,668.6,667.32,1.04874529]
[1748962303797,0.781,668.6,667.33,1.04874529]
[1748962304103,0.781,668.6,667.34,1.04874529]
[1748962304303,0.781,668.6,667.35,1.04874529]
[1748962304503,0.781,668.6,667.36,1.04874529]
[1748962304706,0.781,668.6,667.37,1.04874529]
[1748962304906,0.781,668.6,667.3,0.29971527]
[1748962305605,3.72069198,668.48,667.3,0.29971527]
[1748962306006,3.72069198,668.43,667.3,0.29971527]
[1748962306403,3.72069198,668.36,667.3,0.29971527]
[1748962307002,3.72069198,668.37,667.3,0.29971527]
[1748962307802,3.72069198,668.41,667.3,0.29971527]
[1748962310307,3.72069198,668.41,667.31,1.04984352]
[1748962310508,3.72069198,668.41,667.32,1.04976041]
[1748962310805,0.781,668.6,667.33,1.0497784]
[1748962311007,0.781,668.6,667.3,0.29971527]
[1748962311306,0.781,668.6,667.31,1.0497821]
[1748962311507,0.781,668.6,667.32,1.0497821]
[1748962311702,0.781,668.6,667.33,1.0497821]
[1748962311904,0.781,668.6,667.34,1.0497821]
[1748962312108,0.781,668.6,667.3,0.29971527]
[1748962312306,0.781,668.6,667.31,1.04983414]
[1748962312503,0.781,668.6,667.32,1.04983414]
[1748962312704,0.781,668.6,667.33,1.04984153]
[1748962313008,0.781,668.6,667.34,1.04983986]
[1748962313211,0.781,668.6,667.3,0.29971527]
[1748962313407,0.781,668.6,667.31,1.04983824]
[1748962313609,0.781,668.6,667.32,1.04983824]
[1748962313911,0.781,668.6,667.33,1.04983824]
[1748962314107,0.781,668.6,667.34,1.04983824]
[1748962314305,0.781,668.6,667.3,0.29971527]
[1748962314503,0.781,668.6,667.31,1.05003801]
[1748962314804,0.781,668.6,667.32,1.05003801]
[1748962315003,0.781,668.6,667.33,1.05003801]
[1748962315205,0.781,668.6,667.34,1.05003801]
[1748962315513,0.781,668.6,667.35,1.05000823]
[1748962315708,0.781,668.6,667.3,0.29971527]
[1748962315908,0.781,668.6,667.31,1.04996856]
[1748962316209,0.781,668.6,667.3,0.29971527]
[1748962316210,0.781,668.6,667.32,1.04996856]
[1748962316507,0.781,668.6,667.3,0.29971527]
[1748962316705,0.781,668.6,667.31,1.04994747]